fUSD/lending_fUSD_20251201
["ID","MTS","AMOUNT","RATE_DAILY","PERIOD"]
[395303355,1764601842039,-501.27816058,0.00016221,2]
[395303356,1764601842050,-884.9832306,0.00016221,2]
[395303357,1764601842059,-500.0,0.00016221,2]
[395303358,1764601842069,-339.96710079,0.00016221,2]
[395303359,1764601842079,-1000.0,0.00016221,2]
[395303360,1764601842089,-500.0,0.00016221,2]
[395303361,1764601842098,-771.24315862,0.00016221,2]
[395303362,1764601842107,-1000.0,0.00016221,2]
[395303363,1764601842117,-1000.0,0.00016221,2]
[395303364,1764601842127,-1000.0,0.00016221,2]
[395303365,1764601842136,-23141.92264258,0.00016227,2]
[395303366,1764601842146,-2750.0,0.0001625,2]
[395303367,1764601842156,-2750.0,0.00016305,2]
[395303368,1764601842166,-898.16,0.00016305,2]
[395303369,1764601842175,-2174.0,0.00016342,2]
[395303370,1764601842185,-2750.0,0.0001636,2]
[395303371,1764601842195,-2174.0,0.0001637,2]
[395303372,1764601842205,-654.48,0.00016385,2]
[395303373,1764601842215,-2174.0,0.00016412,2]
[395303374,1764601842224,-944.95306517,0.00016412,2]
[395303375,1764601842234,-2174.0,0.00016437,2]
[395303376,1764601842243,-500.0,0.00016438,2]
[395303377,1764601842252,-500.0,0.00016438,2]
[395303378,1764601842261,-500.0,0.00016438,2]
[395303379,1764601842270,-500.0,0.00016438,2]
[395303380,1764601842280,-500.0,0.00016438,2]
[395303381,1764601842289,-1000.0,0.00016438,2]
[395303382,1764601842299,-1000.0,0.00016438,2]
[395303383,1764601842309,-1000.0,0.00016438,2]
[395303384,1764601842319,-317.37727413,0.00016438,2]
[395303385,1764601842328,-500.0,0.00016438,2]
[395303386,1764601842337,-500.0,0.00016438,2]
[395303387,1764601842347,-500.0,0.00016438,2]
[395303388,1764601842357,-500.0,0.00016438,2]
[395303389,1764601842367,-500.0,0.00016438,2]
[395303390,1764601842377,-500.0,0.00016438,2]
[395303391,1764601842386,-500.0,0.00016438,2]
[395303392,1764601842396,-500.0,0.00016438,2]
[395303393,1764601842405,-500.0,0.00016438,2]
[395303394,1764601842415,-500.0,0.00016438,2]
[395303395,1764601842424,-500.0,0.00016438,2]
[395303396,1764601842434,-500.0,0.00016438,2]
[395303397,1764601842443,-500.0,0.00016438,2]
[395303398,1764601842453,-500.0,0.00016438,2]
[395303399,1764601842462,-500.0,0.00016438,2]
[395303400,1764601842472,-500.0,0.00016438,2]
[395303401,1764601842481,-500.0,0.00016438,2]
[395303402,1764601842491,-500.0,0.00016438,2]
[395303403,1764601842501,-500.0,0.00016438,2]
[395303404,1764601842511,-500.0,0.00016438,2]
[395303405,1764601842521,-500.0,0.00016438,2]
[395303406,1764601842530,-500.0,0.00016438,2]
[395303407,1764601842540,-500.0,0.00016438,2]
[395303408,1764601842549,-500.0,0.00016438,2]
[395303409,1764601842559,-500.0,0.00016438,2]
[395303410,1764601842569,-500.0,0.00016438,2]
[395303411,1764601842578,-500.0,0.00016438,2]
[395303412,1764601842587,-500.0,0.00016438,2]
[395303413,1764601842597,-800.0,0.00016438,2]
[395303414,1764601842607,-164.01,0.0001644,2]
[395303415,1764601842617,-8397.0,0.0001645,2]
[395303416,1764601842627,-639.0,0.00016466,2]
[395303417,1764601842637,-909.0,0.00016498,2]
[395303418,1764601843020,-1217.12,0.00016498,2]
[395303419,1764601843030,-252.0,0.00016498,2]
[395303420,1764601843040,-562.0,0.00016498,2]
[395303421,1764601843051,-4704.0,0.00016498,2]
[395303422,1764601843061,-2174.0,0.00016501,2]
[395303423,1764601843071,-195.0,0.00016519,2]
[395303424,1764601843081,-152.0,0.00016554,2]
[395303425,1764601843091,-150.0,0.00016554,2]
[395303426,1764601843100,-210.0,0.00016554,2]
[395303428,1764601843110,-210.165,0.00016554,2]
[395303429,1764601843120,-220.501,0.00016554,2]
[395303430,1764601843129,-214.613,0.00016554,2]
[395303431,1764601843139,-154.681,0.00016554,2]
[395303432,1764601843148,-250.0,0.00016554,2]
[395303434,1764601843158,-189.728,0.00016554,2]
[395303435,1764601843169,-210.788,0.00016554,2]
[395303436,1764601843180,-250.0,0.00016554,2]
[395303437,1764601843189,-250.0,0.00016554,2]
[395303438,1764601843199,-254.894,0.00016554,2]
[395303440,1764601843208,-163.0,0.00016554,2]
[395303441,1764601843218,-160.578,0.00016554,2]
[395303442,1764601843228,-1322.0,0.00016554,2]
[395303443,1764601843238,-617.633,0.00016554,2]
[395303444,1764601843247,-3442.0,0.00016554,2]
[395303445,1764601843257,-1263.732,0.00016554,2]
[395303446,1764601843267,-740.057,0.00016554,2]
[395303447,1764601843277,-151.0,0.00016571,2]
[395303448,1764601843286,-898.16,0.00016579,2]
[395303449,1764601843297,-226.43577512,0.00016595,2]
[395303450,1764601843307,-5000.0,0.00016596,3]
[395303451,1764601843317,-179.13404474,0.00016596,3]
[395303452,1764601843327,-195.0,0.00016596,2]
[395303453,1764601843337,-250.0,0.00016596,2]
[395303454,1764601843347,-2500.0,0.00016596,2]
[395303455,1764601843357,-2500.0,0.00016596,2]
[395303456,1764601843367,-2500.0,0.00016596,2]
[395303457,1764601843377,-2500.0,0.00016596,2]
[395303458,1764601843386,-795.73324201,0.00016596,2]
[395303459,1764601843396,-20079.84080905,0.00016632,2]
[395303460,1764601843407,-533.88981491,0.00016633,2]
[395303461,1764601843416,-151.0,0.00016633,2]
[395303462,1764601843426,-200.0,0.00016659,2]
[395303463,1764601843437,-3324.74600558,0.0001666,2]
[395303464,1764601843447,-166.66,0.00016662,2]
[395303465,1764601843457,-427.65493559,0.00016667,2]
[395303466,1764601843467,-500.0,0.00016668,2]
[395303467,1764601843477,-1500.0,0.00016668,2]
[395303468,1764601843491,-1000.0,0.000167,2]
[395303469,1764601843501,-176.06,0.00016712,2]
[395303470,1764601843511,-2174.0,0.00016754,2]
[395303471,1764601843522,-1585.66313192,0.00016768,2]
[395303472,1764601843532,-1500.0,0.00016768,2]
[395303473,1764601843543,-1530.94789734,0.00016768,2]
[395303474,1764601843554,-1007.53552233,0.00016768,2]
[395303475,1764601843565,-1000.0,0.000168,2]
[395303476,1764601843574,-1496.79096699,0.00016829,2]
[395303477,1764601843584,-156.56507871,0.00016833,2]
[395303478,1764601843595,-898.16,0.00016853,2]
[395303479,1764601843604,-500.0,0.00016863,2]
[395303480,1764601843614,-200.0,0.00016863,2]
[395303481,1764601843623,-2000.0,0.00016864,2]
[395303482,1764601843633,-200.0,0.00016864,2]
[395303483,1764601843643,-200.0,0.00016864,2]
[395303484,1764601843652,-604.07312412,0.00016885,2]
[395303485,1764601843662,-999.46074508,0.00016899,2]
[395303486,1764601843672,-425.5347,0.000169,2]
[395303487,1764601843681,-6926.01829734,0.000169,2]
[395303488,1764601843691,-2619.68910907,0.000169,2]
[395303489,1764601843701,-573.9176452,0.000169,2]
[395303490,1764601843711,-498.93365538,0.000169,2]
[395303491,1764601843721,-394.04480586,0.000169,2]
[395303492,1764601843730,-298.0,0.00016932,2]
[395303493,1764601843740,-23141.92264258,0.00016936,2]
[395303495,1764601843752,-1178.99078687,0.00016949,2]
[395303496,1764601843761,-1716.0,0.00016959,2]
[395303497,1764601843770,-150.0,0.00016965,2]
[395303498,1764601843780,-150.0,0.00016965,2]
[395303499,1764601843789,-706.0,0.00016965,2]
[395303500,1764601843801,-150.0,0.00016965,2]
[395303501,1764601843811,-150.0,0.00016965,2]
[395303502,1764601843820,-500.0,0.00016965,2]
[395303503,1764601843830,-150.0,0.00016965,2]
[395303504,1764601843840,-150.0,0.00016965,2]
[395303505,1764601843849,-150.0,0.00016965,2]
[395303506,1764601843859,-152.32375408,0.00016965,2]
[395303507,1764601843868,-150.0,0.00016965,2]
[395303508,1764601843877,-150.0,0.00016965,2]
[395303509,1764601843889,-150.0,0.00016965,2]
[395303510,1764601843898,-500.0,0.00016965,2]
[395303511,1764601843908,-150.0,0.00016965,2]
[395303512,1764601843919,-1079.0,0.00016965,2]
[395303513,1764601843928,-150.0,0.00016965,2]
[395303514,1764601843938,-150.0,0.00016965,2]
[395303515,1764601843948,-1682.0,0.00016965,2]
[395303516,1764601843958,-150.0,0.00016965,2]
[395303517,1764601843967,-150.0,0.00016965,2]
[395303518,1764601843977,-150.0,0.00016965,2]
[395303519,1764601843987,-150.0,0.00016965,2]
[395303520,1764601843997,-150.0,0.00016965,2]
[395303521,1764601844007,-150.0,0.00016965,2]
[395303522,1764601844016,-500.0,0.00016965,2]
[395303523,1764601844026,-500.0,0.00016965,2]
[395303524,1764601844036,-150.0,0.00016965,2]
[395303525,1764601844046,-150.0,0.00016965,2]
[395303526,1764601844056,-150.0,0.00016965,2]
[395303527,1764601844065,-150.0,0.00016965,2]
[395303528,1764601844075,-152.48174013,0.00016965,2]
[395303529,1764601844085,-150.0,0.00016965,2]
[395303530,1764601844094,-150.0,0.00016965,2]
[395303531,1764601844104,-500.0,0.00016965,2]
[395303532,1764601844114,-500.0,0.00016965,2]
[395303533,1764601844124,-150.0,0.00016965,2]
[395303534,1764601844134,-208.32314397,0.00016965,2]
[395303535,1764601844144,-500.0,0.00016965,2]
[395303536,1764601844154,-500.0,0.00016965,2]
[395303537,1764601844164,-150.0,0.00016965,2]
[395303538,1764601844174,-150.0,0.00016965,2]
[395303539,1764601844186,-150.0,0.00016965,2]
[395303540,1764601844207,-150.0,0.00016965,2]
[395303541,1764601844220,-150.0,0.00016973,2]
[395303542,1764601844234,-1178.99078687,0.0001699,2]
[395303543,1764601844248,-164.01,0.0001699,2]
[395303544,1764601844259,-151.0,0.00016997,2]
[395303545,1764601844270,-903.19236873,0.00016999,3]
[395303546,1764601844280,-73356.8065928,0.00016999,2]
[395303547,1764601844291,-500.0,0.00016999,2]
[395303548,1764601844302,-500.0,0.00016999,2]
[395303549,1764601844313,-500.0,0.00016999,2]
[395303550,1764601844323,-500.0,0.00016999,2]
[395303551,1764601844334,-500.0,0.00016999,2]
[395303552,1764601844345,-500.0,0.00016999,2]
[395303553,1764601844355,-500.0,0.00016999,2]
[395303554,1764601844365,-500.0,0.00016999,2]
[395303555,1764601844376,-546.51,0.00016999,2]
[395303556,1764601844386,-5617.7933722,0.00016999,2]
[395303557,1764601844397,-300.0,0.00016999,2]
[395303558,1764601844408,-6225.7789873,0.00016999,2]
[395303559,1764601844419,-300.0,0.00016999,2]
[395303560,1764601844430,-4274.7283606,0.00016999,2]
[395303561,1764601844441,-150.8039423,0.00016999,2]
[395303562,1764601844451,-1214.1349595,0.00016999,2]
[395303563,1764601844462,-373.97112144,0.00016999,2]
[395303564,1764601844472,-544.34192817,0.00016999,2]
[395303565,1764601844483,-300.0,0.00016999,2]
[395303566,1764601844494,-1000.6191,0.00016999,2]
[395303567,1764601844504,-300.0,0.00016999,2]
[395303568,1764601844515,-3038471.9199748,0.00017,2]
[395303569,1764601844525,-25000.0,0.00017,3]
[395303570,1764601844536,-175.93572594,0.00017,2]
[395303571,1764601844546,-25000.0,0.00017,3]
[395303572,1764601844556,-658.2817103,0.00017,2]
[395303573,1764601844573,-427.65493559,0.00017,3]
[395303574,1764601844585,-2000.0,0.00017,2]
[395303575,1764601844595,-25000.0,0.00017,3]
[395303576,1764601844606,-250.0,0.00017,2]
[395303577,1764601844617,-497.0,0.00017,2]
[395303578,1764601844628,-22025.02073392,0.00017,3]
[395303579,1764601844639,-200.0,0.00017,2]
[395303580,1764601844650,-209.48,0.00017,2]
[395303581,1764601844661,-2000.0,0.00017,2]
[395303582,1764601844674,-178.11464868,0.00017,2]
[395303583,1764601844684,-1000.0,0.00017,2]
[395303584,1764601844694,-7000.0,0.00017,2]
[395303585,1764601844706,-409.0,0.00017064,2]
[395303586,1764601844717,-2174.0,0.00017074,2]
[395303587,1764601844728,-1000.0,0.000171,2]
[395303588,1764601844738,-150.0,0.00017102,2]
[395303589,1764601844749,-155.50470821,0.00017102,2]
[395303590,1764601844759,-706.0,0.00017102,2]
[395303591,1764601844769,-150.0,0.00017102,2]
[395303592,1764601844780,-500.0,0.00017102,2]
[395303593,1764601844791,-150.0,0.00017102,2]
[395303594,1764601844802,-151.65385416,0.00017102,2]
[395303595,1764601844816,-150.0,0.00017102,2]
[395303596,1764601844827,-150.0,0.00017102,2]
[395303597,1764601844837,-150.0,0.00017102,2]
[395303598,1764601844848,-150.0,0.00017102,2]
[395303599,1764601844859,-500.0,0.00017102,2]
[395303600,1764601844869,-150.0,0.00017102,2]
[395303601,1764601844880,-1079.0,0.00017102,2]
[395303602,1764601844892,-150.0,0.00017102,2]
[395303603,1764601844903,-150.0,0.00017102,2]
[395303604,1764601844913,-1682.0,0.00017102,2]
[395303605,1764601844924,-150.0,0.00017102,2]
[395303606,1764601844940,-500.0,0.00017102,2]
[395303607,1764601844952,-500.0,0.00017102,2]
[395303608,1764601844962,-150.0,0.00017102,2]
[395303609,1764601844973,-150.0,0.00017102,2]
[395303610,1764601844984,-151.75585477,0.00017102,2]
[395303611,1764601844996,-150.0,0.00017102,2]
[395303612,1764601845007,-155.29376756,0.00017102,2]
[395303613,1764601845018,-500.0,0.00017102,2]
[395303614,1764601845029,-500.0,0.00017102,2]
[395303615,1764601845040,-500.0,0.00017102,2]
[395303616,1764601845051,-500.0,0.00017102,2]
[395303617,1764601845062,-150.0,0.00017102,2]
[395303618,1764601845072,-150.0,0.00017102,2]
[395303619,1764601845083,-150.0,0.00017102,2]
[395303620,1764601845094,-151.0,0.00017119,2]
[395303621,1764601845105,-898.16,0.00017127,2]
[395303622,1764601845116,-409.0,0.00017146,2]
[395303623,1764601845127,-300.0,0.00017151,2]
[395303624,1764601845138,-200.0,0.0001717,2]
[395303625,1764601845149,-553.64373807,0.00017181,2]
[395303626,1764601845160,-177.12269218,0.00017181,2]
[395303627,1764601845172,-20079.84080905,0.00017189,2]
[395303628,1764601845183,-1000.0,0.000172,2]
[395303629,1764601845194,-2174.0,0.00017202,2]
[395303630,1764601845204,-2000.0,0.00017216,2]
[395303631,1764601845214,-2174.0,0.0001723,2]
[395303632,1764601845225,-706.0,0.00017239,2]
[395303633,1764601845236,-500.0,0.00017239,2]
[395303634,1764601845248,-150.0,0.00017239,2]
[395303635,1764601845260,-150.0,0.00017239,2]
[395303636,1764601845272,-150.0,0.00017239,2]
[395303637,1764601845285,-500.0,0.00017239,2]
[395303638,1764601845301,-281.12644847,0.00017239,2]
[395303639,1764601845313,-1079.0,0.00017239,2]
[395303640,1764601845325,-153.64216158,0.00017239,2]
[395303641,1764601845337,-1682.0,0.00017239,2]
[395303642,1764601845350,-500.0,0.00017239,2]
[395303643,1764601845368,-500.0,0.00017239,2]
[395303644,1764601845379,-150.0,0.00017239,2]
[395303645,1764601845390,-150.0,0.00017239,2]
[395303646,1764601845401,-199.715824,0.00017239,2]
[395303647,1764601845413,-500.0,0.00017239,2]
[395303648,1764601845424,-417.0,0.00017239,2]
[395303649,1764601845435,-500.0,0.00017239,2]
[395303650,1764601845447,-500.0,0.00017239,2]
[395303651,1764601845458,-200.0,0.00017239,2]
[395303652,1764601845470,-150.0,0.00017239,2]
[395303653,1764601845481,-500.0,0.0001726,5]
[395303654,1764601845492,-2174.0,0.00017277,2]
[395303655,1764601845503,-166.66,0.00017297,2]
[395303656,1764601845514,-2000.0,0.00017316,2]
[395303657,1764601845525,-409.0,0.00017335,2]
[395303658,1764601845537,-263.28,0.00017373,2]
[395303659,1764601845548,-706.0,0.00017376,2]
[395303660,1764601845560,-500.0,0.00017376,2]
[395303661,1764601845571,-150.0,0.00017376,2]
[395303662,1764601845582,-150.0,0.00017376,2]
[395303663,1764601845593,-500.0,0.00017376,2]
[395303664,1764601845603,-1079.0,0.00017376,2]
[395303665,1764601845615,-183.08538541,0.00017376,2]
[395303672,1764601847201,-0.8958823,0.00017376,2]
[395303673,1764601847214,-1498.01873229,0.00017376,2]
[395303674,1764601847224,-500.0,0.00017376,2]
[395303675,1764601847234,-500.0,0.00017376,2]
[395303676,1764601847243,-156.3529007,0.00017376,2]
[395303677,1764601847254,-500.0,0.00017376,2]
[395303678,1764601847264,-500.0,0.00017376,2]
[395303679,1764601847274,-500.0,0.00017376,2]
[395303680,1764601847283,-150.0,0.00017376,2]
[395303681,1764601847293,-258.12836701,0.00017401,2]
[395303682,1764601847305,-640.10163299,0.00017401,2]
[395303683,1764601847315,-500.0,0.00017402,2]
[395303684,1764601847325,-307.41414223,0.00017408,2]
[395303685,1764601847335,-409.0,0.00017411,2]
[395303686,1764601847344,-2174.0,0.00017411,2]
[395303687,1764601847354,-873.11423278,0.00017415,2]
[395303688,1764601847393,-6507.0,0.00016498,2]
[395303689,1764601847403,-1300.88576722,0.00017415,2]
[395303690,1764601847413,-257.91778498,0.00017454,2]
[395303691,1764601847425,-322.6107,0.00017454,2]
[395303692,1764601847435,-151.0,0.00017454,2]
[395303693,1764601847446,-311.1,0.00017454,2]
[395303694,1764601847456,-151.0,0.00017454,2]
[395303695,1764601847467,-409.0,0.00017484,2]
[395303696,1764601847477,-500.0,0.00017493,2]
[395303697,1764601847487,-166.67,0.000175,2]
[395303698,1764601847497,-332.24325531,0.000175,3]
[395303699,1764601847508,-706.0,0.00017513,2]
[395303700,1764601847518,-150.0,0.00017513,2]
[395303701,1764601847530,-150.0,0.00017513,2]
[395303702,1764601847539,-500.0,0.00017513,2]
[395303703,1764601847549,-1079.0,0.00017513,2]
[395303704,1764601847559,-1682.0,0.00017513,2]
[395303705,1764601847569,-500.0,0.00017513,2]
[395303706,1764601847580,-500.0,0.00017513,2]
[395303707,1764601847589,-500.0,0.00017513,2]
[395303708,1764601847599,-500.0,0.00017513,2]
[395303709,1764601847609,-291.39331872,0.00017513,2]
[395303710,1764601847618,-409.0,0.00017516,2]
[395303711,1764601847628,-357.46936817,0.00017521,2]
[395303712,1764601847637,-500.0,0.00017534,6]
[395303713,1764601847648,-1000.0,0.0001761,2]
[395303714,1764601847657,-409.0,0.0001761,2]
[395303715,1764601847667,-23141.92264258,0.00017645,2]
[395303716,1764601847677,-706.0,0.0001765,2]
[395303717,1764601847687,-234.216869,0.0001765,2]
[395303718,1764601847697,-250.0,0.0001765,2]
[395303719,1764601847706,-500.0,0.0001765,2]
[395303720,1764601847715,-1079.0,0.0001765,2]
[395303721,1764601847725,-1682.0,0.0001765,2]
[395303722,1764601847734,-500.0,0.0001765,2]
[395303723,1764601847744,-500.0,0.0001765,2]
[395303724,1764601847754,-500.0,0.0001765,2]
[395303725,1764601847763,-500.0,0.0001765,2]
[395303726,1764601847773,-151.0,0.00017667,2]
[395303727,1764601847783,-1185.89,0.00017694,2]
[395303728,1764601847792,-574.12855637,0.00017729,2]
[395303729,1764601847803,-20079.84080905,0.00017746,2]
[395303730,1764601847817,-409.0,0.00017751,2]
[395303731,1764601847827,-654.48,0.00017755,2]
[395303732,1764601847836,-1279.42621957,0.00017764,2]
[395303733,1764601847847,-706.0,0.00017787,2]
[395303734,1764601847857,-500.0,0.00017787,2]
[395303735,1764601847867,-1079.0,0.00017787,2]
[395303736,1764601847876,-1682.0,0.00017787,2]
[395303737,1764601847887,-500.0,0.00017787,2]
[395303738,1764601847897,-500.0,0.00017787,2]
[395303739,1764601847907,-500.0,0.00017808,7]
[395303740,1764601847918,-500.0,0.00017808,2]
[395303741,1764601847928,-409.0,0.00017854,2]
[395303742,1764601847937,-2500.0,0.00017864,2]
[395303743,1764601847947,-409.0,0.00017902,2]
[395303744,1764601847957,-2174.0,0.00017919,2]
[395303745,1764601847966,-706.0,0.00017924,2]
[395303746,1764601847976,-500.0,0.00017924,2]
[395303747,1764601847986,-1079.0,0.00017924,2]
[395303748,1764601847995,-1682.0,0.00017924,2]
[395303749,1764601848005,-500.0,0.00017924,2]
[395303750,1764601848014,-500.0,0.00017924,2]
[395303751,1764601848024,-166.66,0.00017933,2]
[395303752,1764601848034,-500.0,0.00017945,2]
[395303753,1764601848044,-1100.0,0.00018,3]
[395303754,1764601848053,-2174.0,0.00018011,2]
[395303755,1764601848063,-151.0,0.00018058,2]
[395303756,1764601848072,-706.0,0.00018061,2]
[395303757,1764601848082,-500.0,0.00018061,2]
[395303758,1764601848092,-1079.0,0.00018061,2]
[395303759,1764601848102,-1682.0,0.00018061,2]
[395303760,1764601848112,-500.0,0.00018061,2]
[395303761,1764601848122,-500.0,0.00018061,2]
[395303762,1764601848131,-500.0,0.00018082,2]
[395303763,1764601848141,-500.0,0.00018082,8]
[395303764,1764601848151,-1000.0,0.00018082,2]
[395303765,1764601848161,-170.1,0.00018154,2]
[395303766,1764601848171,-263.28,0.00018163,2]
[395303767,1764601848181,-706.0,0.00018198,2]
[395303768,1764601848191,-500.0,0.00018198,2]
[395303769,1764601848200,-1079.0,0.00018198,2]
[395303770,1764601848210,-1682.0,0.00018198,2]
[395303771,1764601848219,-500.0,0.00018198,2]
[395303772,1764601848229,-500.0,0.00018198,2]
[395303773,1764601848239,-151.0,0.00018215,2]
[395303774,1764601848249,-500.0,0.00018219,2]
[395303775,1764601848259,-595.37131296,0.00018277,2]
[395303776,1764601848268,-207.4,0.00018302,2]
[395303777,1764601848279,-20079.84080905,0.00018304,2]
[395303778,1764601848288,-200.0,0.00018319,2]
[395303779,1764601848298,-706.0,0.00018335,2]
[395303780,1764601848308,-500.0,0.00018335,2]
[395303781,1764601848318,-1079.0,0.00018335,2]
[395303782,1764601848328,-1682.0,0.00018335,2]
[395303783,1764601848338,-500.0,0.00018335,2]
[395303784,1764601848348,-500.0,0.00018335,2]
[395303785,1764601848358,-23141.92264258,0.00018354,2]
[395303786,1764601848367,-500.0,0.00018356,2]
[395303787,1764601848377,-150.01,0.00018356,9]
[395303788,1764601848387,-3000.0,0.00018412,2]
[395303789,1764601848397,-706.0,0.00018472,2]
[395303790,1764601848407,-500.0,0.00018472,2]
[395303791,1764601848418,-1079.0,0.00018472,2]
[395303792,1764601848430,-1682.0,0.00018472,2]
[395303793,1764601848441,-500.0,0.00018472,2]
[395303794,1764601848451,-597.5388714,0.00018472,2]
[395303795,1764601848461,-500.0,0.00018493,2]
[395303796,1764601848471,-170.0795457,0.00018563,2]
[395303797,1764601848481,-706.0,0.00018609,2]
[395303798,1764601848491,-375.0,0.00018609,2]
[395303799,1764601848500,-1079.0,0.00018609,2]
[395303800,1764601848510,-1682.0,0.00018609,2]
[395303801,1764601848519,-500.0,0.00018609,2]
[395303802,1764601848529,-1190.72,0.0001861,2]
[395303803,1764601848538,-500.0,0.0001863,2]
[395303804,1764601848549,-706.0,0.00018746,2]
[395303805,1764601848559,-1079.0,0.00018746,2]
[395303806,1764601848569,-1682.0,0.00018746,2]
[395303807,1764601848579,-500.0,0.00018746,2]
[395303808,1764601848588,-1000.0,0.0001876,2]
[395303809,1764601848598,-295.0,0.00018763,2]
[395303810,1764601848607,-500.0,0.00018767,2]
[395303811,1764601848617,-150.73,0.000188,2]
[395303812,1764601848627,-150.73,0.000188,2]
[395303813,1764601848637,-150.73,0.000188,2]
[395303814,1764601848646,-150.73,0.000188,2]
[395303815,1764601848656,-150.73,0.000188,2]
[395303816,1764601848666,-150.73,0.000188,2]
[395303817,1764601848676,-150.73,0.000188,2]
[395303818,1764601848687,-150.73,0.000188,2]
[395303819,1764601848696,-150.73,0.000188,2]
[395303820,1764601848706,-150.73,0.000188,2]
[395303821,1764601848715,-150.73,0.000188,2]
[395303822,1764601848725,-150.73,0.000188,2]
[395303823,1764601848734,-150.73,0.000188,2]
[395303824,1764601848743,-150.73,0.000188,2]
[395303825,1764601848753,-150.73,0.000188,2]
[395303826,1764601848763,-150.73,0.000188,2]
[395303827,1764601848772,-150.73,0.000188,2]
[395303828,1764601848782,-150.73,0.000188,2]
[395303829,1764601848792,-150.73,0.000188,2]
[395303830,1764601848805,-150.73,0.000188,2]
[395303831,1764601848816,-150.73,0.000188,2]
[395303832,1764601848827,-150.73,0.000188,2]
[395303833,1764601848837,-150.73,0.000188,2]
[395303834,1764601848849,-150.73,0.000188,2]
[395303835,1764601848858,-150.73,0.000188,2]
[395303836,1764601848868,-150.73,0.000188,2]
[395303837,1764601848878,-150.73,0.000188,2]
[395303838,1764601848889,-150.73,0.000188,2]
[395303839,1764601848899,-150.73,0.000188,2]
[395303840,1764601848908,-150.73,0.000188,2]
[395303841,1764601848919,-150.73,0.000188,2]
[395303842,1764601848928,-150.73,0.000188,2]
[395303843,1764601848938,-150.73,0.000188,2]
[395303844,1764601848947,-150.73,0.000188,2]
[395303845,1764601848956,-150.73,0.000188,2]
[395303846,1764601848965,-150.73,0.000188,2]
[395303847,1764601848975,-150.73,0.000188,2]
[395303848,1764601848984,-150.73,0.000188,2]
[395303849,1764601848993,-150.73,0.000188,2]
[395303850,1764601849002,-150.73,0.000188,2]
[395303851,1764601849012,-150.73,0.000188,2]
[395303852,1764601849021,-150.73,0.000188,2]
[395303853,1764601849030,-150.73,0.000188,2]
[395303854,1764601849040,-150.73,0.000188,2]
[395303855,1764601849049,-150.73,0.000188,2]
[395303856,1764601849058,-150.73,0.000188,2]
[395303857,1764601849067,-267.46074303,0.00018823,2]
[395303858,1764601849076,-221.84987424,0.00018823,2]
[395303859,1764601849085,-151.0,0.00018823,2]
[395303860,1764601849095,-322.6107,0.00018823,2]
[395303861,1764601849104,-151.0,0.00018823,2]
[395303862,1764601849114,-599.60298507,0.00018824,2]
[395303863,1764601849123,-617.40005154,0.00018825,2]
[395303864,1764601849133,-20079.84080905,0.00018861,2]